Workbook

Sheet Sheet1
A1: 中国石油大学（北京）工商管理学院2013级会计硕士专业研究生综合测评汇总表
A2: 学号 | B2: 姓名 | C2: 德育成绩 | G2: 智育成绩 | K2: 文体成绩 | O2: 总分 | P2: 排名 | Q2: 确认签字
C3: 基础分 | D3: 奖励分 | E3: 惩罚分 | F3: 总 分 | G3: 学习成绩分 | H3: 奖励分 | I3: 惩罚分 | J3: 总 分 | K3: 基本分 | L3: 奖励分 | M3: 惩罚分 | N3: 总 分
A4: 2013217655 | B4: 李晋 | C4: 99.0136 | D4: 16.0000 | F4: 115.0136 | G4: 92.0909 | H4: 11.6700 | J4: 103.7609 | K4: 98.2273 | L4: 2.0000 | N4: 100.2273 | O4: 105.6581 | P4: 1
A5: 2013217631 | B5: 鲍兰兰 | C5: 98.0955 | D5: 5.0000 | F5: =C5+D5-E5 -> 103.0955 | G5: 89.9909 | H5: 10.0000 | J5: =G5+H5-I5 -> 99.9909 | K5: 97.6818 | N5: =K5+L5-M5 -> 97.6818 | O5: =0.2*F5+0.7*J5+0.1*N5 -> 100.3809 | P5: 2
A6: 2013217625 | B6: 李婷 | C6: 98.4909 | D6: 14.2000 | F6: =C6+D6-E6 -> 112.6909 | G6: 90.8818 | H6: 5.0000 | J6: =G6+H6-I6 -> 95.8818 | K6: 98.0909 | L6: 2.0000 | N6: =K6+L6-M6 -> 100.0909 | O6: =0.2*F6+0.7*J6+0.1*N6 -> 99.6645 | P6: 3
A7: 2013217660 | B7: 朱金哲 | C7: 97.8727 | D7: 8.0000 | F7: 105.8727 | G7: 91.1286 | J7: 91.1286 | K7: 97.9091 | L7: 2.0000 | N7: 99.9091 | O7: 94.9555 | P7: 4
A8: 2013217630 | B8: 陈丽霞 | C8: 98.2545 | D8: 13.0000 | F8: =C8+D8-E8 -> 111.2545 | G8: 89.6364 | J8: =G8+H8-I8 -> 89.6364 | K8: 97.8182 | N8: =K8+L8-M8 -> 97.8182 | O8: =0.2*F8+0.7*J8+0.1*N8 -> 94.7782 | P8: 5
A9: 2013217645 | B9: 拓阳 | C9: 97.9500 | D9: 4.0000 | F9: 101.9500 | G9: 89.9818 | H9: 2.0000 | J9: 91.9818 | K9: 97.4091 | L9: 2.0000 | N9: 99.4091 | O9: 94.7182 | P9: 6
A10: 2013217623 | B10: 宿艳辉 | C10: 98.3000 | D10: 7.0000 | F10: =C10+D10-E10 -> 105.3000 | G10: 89.1636 | H10: 2.0000 | J10: =G10+H10-I10 -> 91.1636 | K10: 98.0000 | N10: =K10+L10-M10 -> 98.0000 | O10: =0.2*F10+0.7*J10+0.1*N10 -> 94.6745 | P10: 7
A11: 2013217657 | B11: 耿冬泽 | C11: 98.9818 | D11: 14.8000 | F11: 113.7818 | G11: 85.6542 | H11: 2.0000 | J11: 87.6542 | K11: 98.2273 | L11: 2.0000 | N11: 100.2273 | O11: 94.1370 | P11: 8
A12: 2013217628 | B12: 王云峰 | C12: 98.3455 | D12: 5.0000 | F12: =C12+D12-E12 -> 103.3455 | G12: 90.9500 | J12: =G12+H12-I12 -> 90.9500 | K12: 97.7273 | N12: =K12+L12-M12 -> 97.7273 | O12: =0.2*F12+0.7*J12+0.1*N12 -> 94.1068 | P12: 9
A13: 2013217656 | B13: 严旭婕 | C13: 97.8091 | D13: 7.0000 | F13: 104.8091 | G13: 87.5682 | H13: 2.0000 | J13: 89.5682 | K13: 97.7727 | L13: 2.0000 | N13: 99.7727 | O13: 93.6368 | P13: 10
A14: 2012217640 | B14: 左亚梅 | C14: 98.4727 | D14: 3.0000 | F14: =C14+D14-E14 -> 101.4727 | G14: 89.2364 | H14: 1.0000 | J14: =G14+H14-I14 -> 90.2364 | K14: 97.5909 | L14: 2.0000 | N14: =K14+L14-M14 -> 99.5909 | O14: =0.2*F14+0.7*J14+0.1*N14 -> 93.4191 | P14: 11
A15: 2013217661 | B15: 李丹 | C15: 98.0000 | D15: 6.0000 | F15: 104.0000 | G15: 89.2667 | J15: 89.2667 | K15: 98.0909 | L15: 2.0000 | N15: 100.0909 | O15: 93.2958 | P15: 12
A16: 2013217652 | B16: 咸昱 | C16: 98.0318 | D16: 8.0000 | F16: 106.0318 | G16: 88.7182 | J16: 88.7182 | K16: 97.5455 | L16: 2.0000 | N16: 99.5455 | O16: 93.2636 | P16: 13
A17: 2013217624 | B17: 吕岳 | C17: 98.3000 | D17: 7.0000 | F17: =C17+D17-E17 -> 105.3000 | G17: 88.8318 | J17: =G17+H17-I17 -> 88.8318 | K17: 97.8182 | L17: 2.0000 | N17: =K17+L17-M17 -> 99.8182 | O17: =0.2*F17+0.7*J17+0.1*N17 -> 93.2241 | P17: 14
A18: 2013217635 | B18: 宋广蕊 | C18: 97.8091 | D18: 9.0000 | F18: =C18+D18-E18 -> 106.8091 | G18: 88.2591 | J18: =G18+H18-I18 -> 88.2591 | K18: 97.7727 | L18: 2.0000 | N18: =K18+L18-M18 -> 99.7727 | O18: =0.2*F18+0.7*J18+0.1*N18 -> 93.1205 | P18: 15
A19: 2013217654 | B19: 周彤 | C19: 98.2864 | D19: 8.8000 | F19: 107.0864 | G19: 88.1182 | J19: 88.1182 | K19: 98.0455 | L19: 2.0000 | N19: 100.0455 | O19: 93.1045 | P19: 16
A20: 2013217648 | B20: 于海礁 | C20: 97.7909 | D20: 8.0000 | F20: 105.7909 | G20: 88.2409 | J20: 88.2409 | K20: 98.0455 | L20: 3.0000 | N20: 101.0455 | O20: 93.0314 | P20: 17
A21: 2013217653 | B21: 陶江涛 | C21: 98.7909 | D21: 15.0000 | F21: 113.7909 | G21: 85.8455 | J21: 85.8455 | K21: 97.6818 | L21: 2.0000 | N21: 99.6818 | O21: 92.8182 | P21: 18
A22: 2013217646 | B22: 赵映梅 | C22: 98.3000 | D22: 2.0000 | F22: 100.3000 | G22: 87.5182 | H22: 1.6000 | J22: 89.1182 | K22: 97.5000 | N22: 97.5000 | O22: 92.1927 | P22: 19
A23: 2013217644 | B23: 王强 | C23: 97.7591 | D23: 8.0000 | F23: 105.7591 | G23: 86.8364 | J23: 86.8364 | K23: 97.6364 | L23: 2.0000 | N23: 99.6364 | O23: 91.9009 | P23: 20
A24: 2013217639 | B24: 刘腾腾 | C24: 97.6182 | D24: 3.0000 | F24: =C24+D24-E24 -> 100.6182 | G24: 88.1318 | J24: =G24+H24-I24 -> 88.1318 | K24: 97.5909 | L24: 2.0000 | N24: =K24+L24-M24 -> 99.5909 | O24: =0.2*F24+0.7*J24+0.1*N24 -> 91.7750 | P24: 21
A25: 2013217627 | B25: 李祥雪 | C25: 98.2818 | D25: 8.0000 | F25: =C25+D25-E25 -> 106.2818 | G25: 86.4182 | J25: =G25+H25-I25 -> 86.4182 | K25: 97.5455 | N25: =K25+L25-M25 -> 97.5455 | O25: =0.2*F25+0.7*J25+0.1*N25 -> 91.5036 | P25: 22
A26: 2013217619 | B26: 万慧芬 | C26: 97.9364 | D26: 7.0000 | F26: =C26+D26-E26 -> 104.9364 | G26: 86.6955 | J26: =G26+H26-I26 -> 86.6955 | K26: 98.2273 | N26: =K26+L26-M26 -> 98.2273 | O26: =0.2*F26+0.7*J26+0.1*N26 -> 91.4968 | P26: 23
A27: 2013217641 | B27: 杨焕荣 | C27: 97.8091 | D27: 3.0000 | F27: =C27+D27-E27 -> 100.8091 | G27: 87.8636 | J27: =G27+H27-I27 -> 87.8636 | K27: 97.6818 | N27: =K27+L27-M27 -> 97.6818 | O27: =0.2*F27+0.7*J27+0.1*N27 -> 91.4345 | P27: 24
A28: 2013217665 | B28: 李琳娜 | C28: 97.0500 | D28: 2.0000 | F28: 99.0500 | G28: 88.3045 | J28: 88.3045 | K28: 97.3636 | N28: 97.3636 | O28: 91.3595 | P28: 25
A29: 2013217629 | B29: 蔡卓妮 | C29: 98.6636 | D29: 12.0000 | F29: =C29+D29-E29 -> 110.6636 | G29: 84.3636 | J29: =G29+H29-I29 -> 84.3636 | K29: 97.7727 | L29: 2.0000 | N29: =K29+L29-M29 -> 99.7727 | O29: =0.2*F29+0.7*J29+0.1*N29 -> 91.1645 | P29: 26
A30: 2013217664 | B30: 吴伟 | C30: 97.0818 | D30: 2.0000 | F30: 99.0818 | G30: 87.9864 | J30: 87.9864 | K30: 97.4545 | N30: 97.4545 | O30: 91.1523 | P30: 27
A31: 2013217622 | B31: 毛玺睿 | C31: 98.0773 | D31: 6.0000 | F31: =C31+D31-E31 -> 104.0773 | G31: 86.4636 | J31: =G31+H31-I31 -> 86.4636 | K31: 97.5000 | N31: =K31+L31-M31 -> 97.5000 | O31: =0.2*F31+0.7*J31+0.1*N31 -> 91.0900 | P31: 28
A32: 2013217620 | B32: 鲁华 | C32: 98.0000 | D32: 8.0000 | F32: =C32+D32-E32 -> 106.0000 | G32: 85.7955 | J32: =G32+H32-I32 -> 85.7955 | K32: 97.6818 | N32: =K32+L32-M32 -> 97.6818 | O32: =0.2*F32+0.7*J32+0.1*N32 -> 91.0250 | P32: 29
A33: 2013217649 | B33: 梁日君 | C33: 98.1727 | D33: 3.0000 | F33: 101.1727 | G33: 86.8955 | J33: 86.8955 | K33: 97.6818 | N33: 97.6818 | O33: 90.8295 | P33: 30
A34: 2013217662 | B34: 卢宁 | C34: 97.8364 | D34: 8.0000 | F34: 105.8364 | G34: 85.6461 | J34: 85.6461 | K34: 96.9545 | N34: 96.9545 | O34: 90.8150 | P34: 31
A35: 2013217663 | B35: 夏初阳 | C35: 97.1136 | D35: 2.0000 | F35: 99.1136 | G35: 87.1682 | J35: 87.1682 | K35: 97.4545 | N35: 97.4545 | O35: 90.5859 | P35: 32
A36: 2013217638 | B36: 丛林 | C36: 97.8727 | D36: 2.0000 | F36: =C36+D36-E36 -> 99.8727 | G36: 86.7091 | J36: =G36+H36-I36 -> 86.7091 | K36: 97.7727 | N36: =K36+L36-M36 -> 97.7727 | O36: =0.2*F36+0.7*J36+0.1*N36 -> 90.4482 | P36: 33
A37: 2013217633 | B37: 陈睿 | C37: 97.6182 | D37: 7.0000 | F37: =C37+D37-E37 -> 104.6182 | G37: 85.1864 | J37: =G37+H37-I37 -> 85.1864 | K37: 97.6818 | N37: =K37+L37-M37 -> 97.6818 | O37: =0.2*F37+0.7*J37+0.1*N37 -> 90.3223 | P37: 34
A38: 2013217632 | B38: 张秋菊 | C38: 97.8727 | D38: 4.0000 | F38: =C38+D38-E38 -> 101.8727 | G38: 85.9500 | J38: =G38+H38-I38 -> 85.9500 | K38: 97.6818 | N38: =K38+L38-M38 -> 97.6818 | O38: =0.2*F38+0.7*J38+0.1*N38 -> 90.3077 | P38: 35
A39: 2013217636 | B39: 王霄 | C39: 97.7773 | D39: 1.0000 | F39: =C39+D39-E39 -> 98.7773 | G39: 86.7545 | J39: =G39+H39-I39 -> 86.7545 | K39: 97.1818 | N39: =K39+L39-M39 -> 97.1818 | O39: =0.2*F39+0.7*J39+0.1*N39 -> 90.2018 | P39: 36
A40: 2013217621 | B40: 胡振钟 | C40: 98.1409 | D40: 7.8000 | F40: =C40+D40-E40 -> 105.9409 | G40: 84.5292 | J40: =G40+H40-I40 -> 84.5292 | K40: 97.5909 | N40: =K40+L40-M40 -> 97.5909 | O40: =0.2*F40+0.7*J40+0.1*N40 -> 90.1177 | P40: 37
A41: 2013217650 | B41: 王永跃 | C41: 97.8227 | D41: 9.0000 | F41: 106.8227 | G41: 83.8045 | J41: 83.8045 | K41: 97.7727 | L41: 2.0000 | N41: 99.7727 | O41: 90.0050 | P41: 38
A42: 2013217659 | B42: 封亦超 | C42: 97.6182 | D42: 7.0000 | F42: 104.6182 | G42: 83.7542 | J42: 83.7542 | K42: 98.5000 | L42: 5.6000 | N42: 104.1000 | O42: 89.9616 | P42: 39
A43: 2013217642 | B43: 滕艺 | C43: 96.8455 | D43: 2.0000 | F43: 98.8455 | G43: 86.0500 | J43: 86.0500 | K43: 97.5455 | N43: 97.5455 | O43: 89.7586 | P43: 40
A44: 2013217634 | B44: 陈婷 | C44: 97.6500 | D44: 3.0000 | F44: =C44+D44-E44 -> 100.6500 | G44: 85.4091 | J44: =G44+H44-I44 -> 85.4091 | K44: 97.4545 | N44: =K44+L44-M44 -> 97.4545 | O44: =0.2*F44+0.7*J44+0.1*N44 -> 89.6618 | P44: 41
A45: 2013217643 | B45: 胡建松 | C45: 98.2682 | D45: 6.0000 | F45: 104.2682 | G45: 83.3909 | J45: 83.3909 | K45: 97.5909 | L45: 2.0000 | N45: 99.5909 | O45: 89.1864 | P45: 42
A46: 2013217640 | B46: 冯海霞 | C46: 97.6818 | D46: 3.0000 | F46: =C46+D46-E46 -> 100.6818 | G46: 83.7182 | J46: =G46+H46-I46 -> 83.7182 | K46: 97.4545 | N46: =K46+L46-M46 -> 97.4545 | O46: =0.2*F46+0.7*J46+0.1*N46 -> 88.4845 | P46: 43
A47: 2013217658 | B47: 周紫旋 | C47: 97.9364 | D47: 2.0000 | F47: 99.9364 | G47: 83.4583 | J47: 83.4583 | K47: 97.5000 | N47: 97.5000 | O47: 88.1581 | P47: 44
A48: 2013217651 | B48: 范烨 | C48: 96.1682 | D48: 2.0000 | F48: 98.1682 | G48: 81.1818 | J48: 81.1818 | K48: 96.3182 | L48: 2.0000 | N48: 98.3182 | O48: 86.2927 | P48: 45

Sheet Sheet2

Sheet Sheet3
